Cogmind - Beta 14 @@@ ROGUE MODE // 2024.10.14 @ 18:32:23 Player: APerTAS Result: Core destroyed Performance ------------- Evolutions (1) 500 Regions Visited (2) 400 Robots Destroyed (21) 105 Value Destroyed (248) 248 Prototype IDs (0) 0 Alien Tech Used (0) 0 Bonus (0) 0 TOTAL SCORE: 1253 Bonus ------- None Cogmind --------- Core Integrity 0/400 Matter 7/300 Energy 100/100 System Corruption 0% Temperature Cool (0) Movement Core (50) Location -9/Materials Parts ------- > --- POWER (1) -------- (None) > --- PROPULSION (2) --- (None) > --- UTILITY (2) ------ (None) > --- WEAPON (4) ------- (None) > --- INVENTORY (5) ---- Light Ion Engine Aluminum Leg Small Laser Peak State ------------ > --- POWER ------------ Ion Engine > --- PROPULSION ------- Light Treads Light Treads > --- UTILITY ---------- Small Storage Unit > --- WEAPON ----------- Assault Rifle Assault Rifle > --- INVENTORY -------- Aluminum Leg Aluminum Leg [Rating: 6] Favorites ----------- Power Ion Engine Engine Ion Engine Propulsion Light Treads Treads Light Treads Leg Aluminum Leg Utility Small Storage Unit Storage Small Storage Unit Weapon Grenade Launcher Ballistic Gun Assault Rifle Launcher Grenade Launcher Build | -11 -10 -9 ------- Run | Yrd Mat Mat Slots Evolved 2 | . . 2 Power . | . . . Propulsion . | . . . Utility . | . . . Weapon 2 | . . 2 Parts Attached 11 | 6 . 5 Power 1 | 1 . . Engine 1 | 1 . . Core . | . . . Reactor . | . . . Propulsion 3 | 2 . 1 Treads 2 | 2 . . Leg 1 | . . 1 Wheel . | . . . Hover . | . . . Flight . | . . . Utility 1 | 1 . . Device . | . . . Storage 1 | 1 . . Processor . | . . . Hackware . | . . . Protection . | . . . Artifact . | . . . Weapon 6 | 2 . 4 Energy Gun . | . . . Energy Cannon . | . . . Ballistic Gun 2 | 2 . . Ballistic Cannon . | . . . Launcher 4 | . . 4 Special Weapon . | . . . Impact Weapon . | . . . Slashing Weapon . | . . . Piercing Weapon . | . . . Special Melee Weapon . | . . . Unidentified Prototypes . | . . . Parts Lost 2 | . 2 . Power 1 | . 1 . Propulsion . | . . . Utility . | . . . Weapon 1 | . 1 . Highest Loss Streak 1 | . 1 . To Critical Strikes . | . . . Average Slot Usage (%) 51 | . 70 30 Engine 5 | . 11 . Treads 13 | . 26 . Leg 2 | . . 5 Storage 6 | . 13 . Ballistic Gun 10 | . 19 . Launcher 11 | . . 24 Peak Build Rating 6 | 6 6 5 Average Rating 3 | 3 5 2 On Entrance 2 | . 6 . Naked Turns 129 | . 17 112 Heaviest Build 14 | 14 14 12 Greatest Support 40 | 40 40 10 Greatest Overweight (x) 2 | . . 2 Average Overweight (x) . | . . . Largest Inventory Capacity 8 | 8 8 5 Average Capacity 6 | 6 7 5 Most Carried 4 | 4 4 4 Average Carried 3 | 1 4 3 Final Capacity 8 | 8 5 5 Final Carried 4 | 4 4 3 Class Distribution -------------------- 77% | Mutant 19% | Gunner Dominant Class ---------------- Mutant | -10/Materials Gunner | -9/Materials Resources | -11 -10 -9 ----------- Run | Yrd Mat Mat Matter Collected 295 | 251 44 . Remotely . | . . . Salvage Created 498 | . 498 . Parts 43 | . 43 . Haulers Intercepted 1 | . 1 . Recyclers Shooed 1 | . 1 . Parts Field Recycled . | . . . Retrieved Matter . | . . . Parts Self-Destructed . | . . . Prevented . | . . . Kills | -11 -10 -9 ------- Run | Yrd Mat Mat Combat Hostiles Destroyed 11 | . 11 . Guns 10 | . 10 . AOE 1 | . 1 . Classes Destroyed 6 | . 6 . Worker 4 | . 4 . Builder 4 | . 4 . Hauler 1 | . 1 . Watcher 1 | . 1 . Swarmer 7 | . 7 . Grunt 4 | . 4 . Best Kill Streak 10 | . 10 . Combat Bots Only 6 | . 6 . Max Kills in Single Turn 1 | . 1 . Gunslinging . | . . . Exploded 1 | . 1 . Melee . | . . . Uniques/NPCs Destroyed . | . . . Combat | -11 -10 -9 -------- Run | Yrd Mat Mat Hostile Shots Fired 125 | . 64 61 Missed 40 | . 18 22 Damage Taken 997 | . 522 475 Core 497 | . 88 409 Absorbed by Shields . | . . . Core Remaining (%) 82 | 100 64 . Volleys Fired 79 | . 79 . Largest 2 | . 2 . Hottest 40 | . 40 . Shots Fired 96 | . 96 . Gun 96 | . 96 . Cannon . | . . . Launcher . | . . . Special . | . . . Kinetic 96 | . 96 . Thermal . | . . . Explosive . | . . . Electromagnetic . | . . . Robot Hit Streak 9 | . 9 . Robot Miss Streak 4 | . 4 . Penetration Max . | . . . Secondary Targets 2 | . 2 . Max Gunslinging Chain 1 | . 1 . Shots Hit Robots 62 | . 62 . Core Hits 29 | . 28 1 Critical Kills . | . . . Critical Parts Destroyed . | . . . Critical Strikes . | . . . Melee Attacks . | . . . Impact . | . . . Slashing . | . . . Piercing . | . . . Sneak Attacks . | . . . Combat Hostiles . | . . . Follow-up Attacks . | . . . Damage Inflicted 795 | . 779 16 Guns 779 | . 779 . Cannons . | . . . Explosions . | . . . Melee . | . . . Ramming 16 | . . 16 Kinetic 779 | . 779 . Thermal . | . . . Explosive . | . . . Electromagnetic . | . . . Impact . | . . . Slashing . | . . . Piercing . | . . . Highest Corruption . | . . . Average Corruption . | . . . Corruption Purged . | . . . Corruption Blocked . | . . . Overload Shots . | . . . Overflow Damage . | . . . Projectiles . | . . . Explosions . | . . . Melee . | . . . Knockbacks . | . . . Impact . | . . . Kinetic . | . . . Secondary . | . . . Self-Inflicted Damage 8 | . . 8 Shots . | . . . Rammed 1 | . . 1 Targets Rammed 1 | . . 1 Kicked . | . . . Crushed . | . . . Highest Temperature 23 | . 23 . Average Temperature 13 | . 13 . Received Heat Transfer 267 | . 96 171 Siege Activations . | . . . Robots Corrupted . | . . . Combat Hostiles . | . . . Parts Fried . | . . . Impact Corruptions . | . . . Robots Melted . | . . . Combat Hostiles . | . . . Parts Melted . | . . . Heat Transferred . | . . . Parts Sabotaged . | . . . Parts Stolen . | . . . Parts Stripped . | . . . Power Chain Reactions . | . . . Alert | -11 -10 -9 ------- Run | Yrd Mat Mat Peak Influence 439 | . 400 439 Initial 169 | . . 169 Average 164 | . 204 218 Maximum Alert Level 2 | . 2 2 Low Security (%) 68 | 100 47 72 Level 1 25 | . 43 20 Level 2 5 | . 8 6 Level 3 . | . . . Level 4 . | . . . Level 5 . | . . . High Security . | . . . Max Security . | . . . Squads Dispatched 5 | . 2 3 Investigation 2 | . 1 1 Extermination . | . . . Reinforcement 3 | . 1 2 Assault . | . . . Garrison . | . . . Intercept . | . . . Searches Triggered . | . . . Construction Impeded . | . . . Haulers Reinforced . | . . . Active Scanning Responses . | . . . Cargo Convoy Interrupts . | . . . Stealth | -11 -10 -9 --------- Run | Yrd Mat Mat Distress Signals 3 | . 1 2 Communications Jammed . | . . . Distress Signals . | . . . Times Spotted 46 | . 22 24 Peak Tracking Total 15 | . 5 15 Tactical Retreats 6 | . 2 4 Traps | -11 -10 -9 ------- Run | Yrd Mat Mat Traps Triggered 1 | . 1 . Indirectly . | . . . Trap Hack Attempts . | . . . Triggered . | . . . Disarmed . | . . . Reprogrammed . | . . . Reused . | . . . Traps Extracted . | . . . Installed . | . . . Triggered . | . . . Machines | -11 -10 -9 ---------- Run | Yrd Mat Mat Machines Disabled . | . . . Max in Single Turn . | . . . Machines Repaired . | . . . Machines Dismantled . | . . . Machines Sabotaged . | . . . Overloaded Fab Kills . | . . . Hacking | -11 -10 -9 --------- Run | Yrd Mat Mat Machines Accessed 1 | . . 1 Terminals 1 | . . 1 Fabricators . | . . . Repair Stations . | . . . Recycling Units . | . . . Scanalyzers . | . . . Garrison Access . | . . . Total Hacks 3 | . . 3 Successful 1 | . . 1 Failed 2 | . . 2 Catastrophic . | . . . Database Lockouts . | . . . Manual 1 | . . 1 Terminals 3 | . . 3 Fabricators . | . . . Repair Stations . | . . . Recycling Units . | . . . Scanalyzers . | . . . Garrison Access . | . . . Terminal Hacks . | . . . Fabricator Hacks . | . . . Repair Station Hacks . | . . . Recycling Unit Hacks . | . . . Scanalyzer . | . . . Garrison Access Hacks . | . . . Unauthorized Hacks 1 | . . 1 Terminals 1 | . . 1 Botnet 1 | . . 1 Fabricators . | . . . Repair Stations . | . . . Recycling Units . | . . . Scanalyzers . | . . . Garrison Access . | . . . Data Cores Recovered . | . . . Used . | . . . Hacking Detections 1 | . . 1 Full Trace Events 1 | . . 1 Feedback Events . | . . . Feedback Blocked . | . . . Robot Schematics Acquired . | . . . Robots Built . | . . . Authchips . | . . . Time . | . . . Total Robot Build Rating . | . . . Part Schematics Acquired . | . . . Parts Built . | . . . Authchips . | . . . Time . | . . . Total Part Build Rating . | . . . Parts Repaired . | . . . Time . | . . . Parts Recycled . | . . . Recycled Matter . | . . . Retrieved Matter . | . . . Retrieved Components . | . . . Parts Scanalyzed . | . . . Part Schematics Acquired . | . . . Parts Damaged . | . . . Bothacking | -11 -10 -9 ------------ Run | Yrd Mat Mat Used RIF Installer . | . . . Robots Hacked . | . . . Non-combat . | . . . Combat . | . . . Robot Hacks Applied . | . . . Relay Couplers Released . | . . . Fabnet Peak Effective % . | . . . Robots Rewired . | . . . Allies Hacked . | . . . Hacks Repelled . | . . . Allies | -11 -10 -9 -------- Run | Yrd Mat Mat Total Allies . | . . . Largest Group . | . . . Highest-Rated Group . | . . . Highest-Rated Ally . | . . . Total Orders . | . . . Ally Attacks . | . . . Total Damage . | . . . Kills . | . . . Allies Corrupted . | . . . Allies Melted . | . . . Intel | -11 -10 -9 ------- Run | Yrd Mat Mat Robot Analysis Total . | . . . Derelict Logs Recovered . | . . . Drone Launches . | . . . Drone Recoveries . | . . . Exploration | -11 -10 -9 ------------- Run | Yrd Mat Mat Turns Passed 702 | 154 286 262 Spaces Moved 473 | 97 76 300 Core 275 | 12 35 228 Treads 126 | 85 41 . Legs 72 | . . 72 Wheels . | . . . Hover . | . . . Flight . | . . . Fastest Speed 50 | 50 50 50 Average Speed 101 | 146 109 84 Slowest Speed 190 | 160 160 190 Overloaded Moves . | . . . Propulsion Burnouts . | . . . Robots Hopped . | . . . Cave-ins Triggered . | . . . Exploration Rate (%) 23 | 5 24 42 Regions Visited 2 Branch Regions . Pre-discovered Areas . | . . . Known Exits Taken . | . . . Unknown Exits Taken 2 | 1 1 . Scrap Searched . | . . . Spaces Dug . | . . . Terrain Destroyed . | . . . Melee . | . . . Projectile . | . . . AOE . | . . . Terrain Rammed . | . . . Walls Destroyed . | . . . Machines Disabled . | . . . Actions | -11 -10 -9 --------- Run | Yrd Mat Mat Total 593 | 106 182 305 Wait 28 | . 28 . Move 471 | 96 75 300 Hop . | . . . Pick Up 4 | 4 . . Fast Attach 10 | 6 . 4 Attach 1 | . . 1 Detach . | . . . Swap . | . . . Drop . | . . . Fire 79 | . 79 . Melee . | . . . Ram . | . . . Kick . | . . . Crush . | . . . Escape Stasis . | . . . Rewire . | . . . Trap . | . . . Miscellaneous . | . . . Route ------- -11/Scrapyard -10/Materials -9/Materials History --------- Turn | Location | Event 2 | -11/Scrapyard | Discovered new exit (range 16) 155 | -11/Scrapyard | Entered Materials 308 | -10/Materials | Build established: Mutant 424 | -10/Materials | Released all parts (4) 434 | -10/Materials | Discovered new exit (range 16) 441 | -10/Materials | Entered another Materials area 441 | -9/Materials | Evolved 2 slots: Weapon x2 596 | -9/Materials | Released all parts (5) 632 | -9/Materials | Core integrity fell below 50% 638 | -9/Materials | Core integrity fell below 20% 703 | -9/Materials | Core destroyed Last Messages --------------- 00596_ Released Grenade Launcher. 00601_ K-01 Serf collects debris. 00613_ Critical hit (Burn: +37). 00620_ O-16 Technician: "IFF HANDSHAKE FAILED. SECURING TERMINAL." 00624_ ALERT: Hostiles spotted, dispatching reinforcements to Terminal M012. 00631_ Critical hit (Burn: +37). 00637_ K-01 Serf collects debris. 00644_ C-30 ARC bursts open, deploying its payload. 00644_ S-10 Pest unfolds itself. 00654_ O-16 Technician: "IFF HANDSHAKE FAILED. SECURING TERMINAL." 00663_ ALERT: Hostiles spotted, dispatching reinforcements to Terminal M007. 00682_ K-01 Serf collects debris. 00702_ C-30 ARC bursts open, deploying its payload. 00702_ G-47 Trooper unfolds itself. 00703_ Slammed into G-47 Trooper. 00703_ Destabilizing: Core damaged (-16). Map ----- +----------------------------------------------------+ | | | | | | | | | | | | | | | | | | | | | | | | | | | | | | | | | | | | | | | ##????????????????#####???????????????????????? | | #???????????????? ???????????????????????? | | #???????????????? ???????????????????????? | | #????????????????? ????????????????????????? | | #???????#########? ????????????????????????? | | #??????# #?#+########+####????????????? | | #??????#""" #?# @g +??????? | | #??????#"R #?# #####g#######????????????? | | ##??????#""" #?# #????% ?????????????????? | | ????????# #?# #????? *????????????????? | | ????????# """#?# #????? ???????????????? | | ????????# """#?# #?????? #?????????????? | | ????????# """#?# #?????? #?????????????? | | ????????# #?# #??????? #?????????????? | | ????????#####+###### #???????+###?????????????? | | ???????????# #????????????????????????? | | ???????????# #######????????????????????????? | | ???????????+ #??????????????????????????????? | | ???????????# #??????????????????????????????? | | ???????????# #??????????????????????????????? | | ???????????# #??????????????????????????????? | | ???????????# #??????????????????????????????? | | ####?####+## #??????????????????????????????? | | #??????????????????????????????? | | ####?####### #??????????????????????????????? | | #########??# #??????????????????????????????? | | #??# #??????????????????????????????? | | #??# #??????????????????????????????? | | =[* #??# #??????????????????????????????? | | =* #??# #??????????????????????????????? | | [* #??# #??????????????????????????????? | +----------------------------------------------------+ Best States ------------- Heat Dissipation 28 Energy Generation 10 Energy Capacity 250 Matter Stores 300 Matter Capacity 300 Sight Range 16 Terrain Scan Density 10 Evasion (%) 50 Recoil Reduction 2 Item Schematics ----------------- None Robot Schematics ------------------ None Fabricated ------------ Nothing Alien Tech Used ----------------- None Achievements -------------- None Challenges ------------ None Game ------ Seed DeuteriumReactionChainsaw Manual? 0 Play Time 00:05:16 Cumulative 38.5 hours Start 2024.10.14 @ 18:26:35 End 2024.10.14 @ 18:32:23 Sessions 5 Manual Loads 0 Difficulty Rogue Special Mode None Game No. 156 Rogue 156 Adventurer 0 Explorer 0 Win Type - Total 0 Types 0/0/0/0/0/0/0/0/0 Lore% 48 Gallery% 33 Achievement% 34 Wizard Run 0 Options --------- Layout 0 ASCII 0 Keyboard 0 Movement Arrows Keybinds 0 Fullscreen 1 Font 24/Terminus Map View 64x52 Zoom Use 0% Tactical HUD 1 Map Filters NONE Filters NONE Steam X RUN: 8bd389ad-e0dd-4730-be82-d6a020741d19